bitfinex/quotes_ETHUSD_20251111
["timestamp","ask_amount","ask_price","bid_price","bid_amount"]
[1762849530388,0.653,3559.6,3559.5,0.9822]
[1762849530608,0.653,3559.6,3559.5,1.64232564]
[1762849531116,0.002,3559.6,3559.5,4.45170898]
[1762849531430,0.653,3559.6,3559.5,4.45170898]
[1762849532534,0.653,3559.6,3559.5,1.64232564]
[1762849533030,0.653,3559.6,3559.5,0.9822]
[1762849533709,0.653,3559.6,3559.5,3.79158334]
[1762849535320,0.002,3559.6,3559.5,3.79158334]
[1762849535530,0.002,3560.0,3559.9,2.80906767]
[1762849535737,0.653,3560.0,3559.9,3.29136767]
[1762849535927,0.653,3560.0,3559.9,4.82505618]
[1762849538552,0.002,3560.0,3559.9,4.82505618]
[1762849538751,0.653,3560.0,3559.9,4.82505618]
[1762849541444,0.651,3560.6,3559.9,2.01598851]
[1762849541643,0.002,3561.2,3561.1,0.4823]
[1762849542022,1.1328,3561.2,3560.7,0.0888]
[1762849542220,0.653,3561.2,3560.7,2.89723511]
[1762849542442,0.653,3561.2,3561.1,0.4823]
[1762849543184,0.653,3561.2,3561.1,1.1773]
[1762849543880,0.653,3561.2,3561.1,0.4823]
[1762849545183,0.653,3561.2,3560.7,0.5887]
[1762849545382,0.653,3561.2,3561.1,0.4823]
[1762849545765,0.653,3561.2,3561.1,0.9822]
[1762849546575,0.653,3561.2,3561.1,0.4823]
[1762849547948,0.653,3561.2,3561.1,1.1773]
[1762849548873,0.002,3561.2,3561.1,1.1773]
[1762849549071,0.002,3561.2,3561.1,3.98542108]
[1762849549701,0.002,3561.2,3560.7,0.5887]
[1762849549848,0.4352,3561.2,3560.7,0.5887]
[1762849550044,4.17266057,3561.2,3560.7,0.5887]
[1762849550572,6.9807546,3561.2,3560.7,0.5887]
[1762849550891,6.9807546,3561.2,3560.4,2.45999999]
[1762849550892,2.8083259,3560.9,3560.4,2.45999999]
[1762849551195,0.651,3560.8,3560.6,2.80845855]
[1762849551357,0.002,3561.2,3561.1,0.4823]
[1762849551689,0.653,3561.2,3561.1,0.5711]
[1762849552498,3.46104223,3561.2,3561.1,0.4823]
[1762849552700,2.133439,3561.2,3560.7,2.80842203]
[1762849552856,0.653,3561.2,3561.1,0.4823]
[1762849554388,0.002,3561.2,3561.1,0.4823]
[1762849554688,0.653,3561.2,3561.1,0.4823]
[1762849556891,1.0862,3561.2,3560.3,0.1951]
[1762849557062,3.89424223,3561.2,3560.6,2.80851491]
[1762849557495,3.89424223,3561.2,3560.6,3.26461491]
[1762849557993,2.80821684,3561.0,3560.6,0.4561]
[1762849558201,2.808246,3561.0,3560.4,0.4747]
[1762849558495,2.808246,3561.0,3560.4,3.28336113]
[1762849559101,0.651,3560.9,3560.4,3.28336113]
[1762849559599,2.32318175,3560.9,3560.3,3.00380043]
[1762849559805,1.65168175,3560.9,3560.4,3.28337015]
[1762849559967,1.65168175,3560.9,3560.8,0.4713]
[1762849560166,1.00068175,3560.9,3560.8,0.4713]
[1762849560366,0.651,3560.9,3560.8,0.946]
[1762849560566,0.651,3560.9,3560.8,3.75435767]
[1762849560867,0.651,3560.9,3560.8,0.946]
[1762849562672,0.002,3561.2,3560.8,0.946]
[1762849563000,0.002,3561.2,3561.1,3.36822108]
[1762849563203,0.002,3561.2,3561.1,3.39630229]
[1762849563204,0.652,3561.2,3561.1,3.39630229]
[1762849563406,0.652,3561.2,3561.1,3.84292108]
[1762849564767,0.652,3561.2,3561.1,1.0348]
[1762849565168,1.1266,3561.2,3560.6,2.45999999]
[1762849565366,1.1266,3561.2,3560.7,2.808418]
[1762849565910,1.1266,3561.2,3560.8,3.28305015]
[1762849566406,1.1266,3561.2,3560.8,0.4747]
[1762849566805,0.652,3561.2,3561.1,0.4713]
[1762849568084,0.652,3561.2,3560.4,3.71971199]
[1762849568287,0.652,3561.2,3560.8,2.80834873]
[1762849568820,0.652,3561.2,3560.9,2.80826008]
[1762849569203,0.652,3561.2,3561.1,0.4713]
[1762849570087,0.002,3561.2,3561.1,3.84522108]
[1762849570432,0.295,3561.2,3561.1,8.87057904]
[1762849570724,0.295,3561.2,3561.1,5.13311847]
[1762849574724,0.295,3561.2,3561.1,8.87057904]
[1762849576230,0.295,3561.2,3561.1,11.33057903]
[1762849576429,0.002,3561.2,3561.1,11.33057903]
[1762849576911,0.002,3561.2,3561.1,7.59311846]
[1762849577431,0.002,3561.6,3561.5,4.06751769]
[1762849577591,0.002,3561.6,3561.5,9.11903133]
[1762849578796,0.002,3561.6,3561.5,11.57903132]
[1762849579034,1e-08,3561.7,3561.6,5.41894286]
[1762849579193,1e-08,3561.9,3561.8,4.5385812]
[1762849579530,0.002,3562.4,3561.9,4.06720238]
[1762849579831,0.002,3562.4,3561.9,8.6706325]
[1762849583914,1e-08,3562.6,3562.5,0.4713]
[1762849584159,0.002,3563.0,3562.9,2.8067024]
[1762849584378,0.002,3563.0,3562.9,8.86395776]
[1762849584528,0.002,3563.0,3562.9,10.34865971]
[1762849585358,0.002,3563.0,3562.9,9.94315571]
[1762849586966,0.002,3563.0,3562.9,6.52518337]
[1762849589678,0.002,3563.0,3562.9,8.98518336]
[1762849590048,0.002,3563.0,3562.9,6.93068737]
[1762849590473,0.01,3563.9,3563.8,2.8059936]
[1762849590674,0.01,3563.9,3563.8,5.1262134]
[1762849590951,0.01,3563.9,3563.8,5.5919134]
[1762849591146,0.01,3563.9,3563.8,4.6269134]
[1762849591347,0.4521,3563.9,3563.3,0.4657]
[1762849591548,0.6428,3563.9,3563.2,1.259712]
[1762849591747,0.4704,3563.8,3563.5,2.80615785]
[1762849591972,0.4704,3563.8,3563.4,2.80625441]
[1762849592175,0.4704,3563.8,3563.4,2.80630028]
[1762849592350,0.4424,3563.5,3562.9,1.259712]
[1762849592545,0.4424,3563.5,3562.4,0.8481]
[1762849592779,0.2007,3563.9,3562.4,0.8481]
[1762849592780,0.4736,3563.7,3563.3,2.80633903]
[1762849592980,2.80620141,3563.6,3562.4,0.8481]
[1762849593218,0.4736,3563.7,3562.4,0.8481]
[1762849593517,0.2007,3563.9,3563.1,2.80650768]
[1762849593518,0.4736,3563.6,3563.1,2.80650768]
[1762849593813,0.4393,3563.2,3563.1,2.80652674]
[1762849594125,0.4393,3563.2,3562.5,0.4657]
[1762849594318,0.4393,3563.2,3563.1,2.80654486]
[1762849595671,0.65,3563.7,3563.1,0.4993]
[1762849595967,1.0996,3563.7,3563.4,2.80630846]
[1762849596283,1.0996,3563.7,3563.6,2.80615108]
[1762849596804,1.5389,3563.7,3563.3,2.80638733]
[1762849597006,0.4393,3563.7,3563.6,2.80615108]
[1762849597226,0.01,3563.9,3563.8,2.8059936]
[1762849597508,0.01,3563.9,3563.8,4.5650056]
[1762849597700,0.01,3563.9,3563.8,5.0307056]
[1762849597865,0.01,3563.9,3563.8,5.81439127]
[1762849600595,0.01,3563.9,3563.8,5.34869127]
[1762849601108,0.01,3563.9,3563.8,5.81439127]
[1762849601270,0.01,3563.9,3563.8,4.84939127]
[1762849601466,0.01,3563.9,3563.8,5.34869127]
[1762849602505,0.4424,3563.9,3563.8,4.84939127]
[1762849603286,0.01,3563.9,3563.8,4.84939127]
[1762849605405,0.9156,3563.9,3563.8,4.0657056]
[1762849605710,0.4428,3563.9,3563.8,4.0657056]
[1762849606835,1.1132,3563.9,3563.3,0.57320873]
[1762849607042,0.0047,3563.7,3563.6,2.80615108]
[1762849607549,0.0047,3563.7,3563.5,2.80617328]
[1762849607694,0.4984,3563.5,3563.4,2.80625041]
[1762849607899,0.4984,3563.5,3562.9,0.649]
[1762849608117,0.0041,3563.0,3562.9,0.649]
[1762849608317,0.4079,3563.5,3562.9,0.62626458]
[1762849608523,0.4079,3563.5,3563.3,2.80634834]
[1762849608737,0.4079,3563.5,3563.4,2.80630858]
[1762849609028,0.2076,3563.9,3563.5,2.80616967]
[1762849609208,0.2076,3563.9,3562.5,4.71570922]
[1762849609209,0.4736,3563.8,3562.8,1.725412]
[1762849609532,0.4736,3563.8,3563.4,2.80625504]
[1762849609731,0.4736,3563.8,3563.5,2.80620024]
[1762849609926,0.4736,3563.8,3562.8,0.4657]
[1762849610128,0.4736,3563.8,3563.4,2.80628917]
[1762849610293,0.4736,3563.8,3563.3,2.80638733]
[1762849610498,0.4736,3563.8,3563.4,2.8062597]
[1762849610692,0.649,3563.8,3563.0,2.80662363]
[1762849610896,0.2076,3563.9,3563.8,2.8059936]
[1762849610897,0.01,3563.9,3563.8,2.8059936]
[1762849611106,0.01,3563.9,3563.8,3.63582296]
[1762849611494,0.01,3563.9,3563.8,4.10152296]
[1762849612229,0.01,3563.9,3563.8,3.63582296]
[1762849613732,0.4424,3563.9,3563.8,2.8059936]
[1762849614235,0.4424,3563.9,3563.0,2.80662286]
[1762849614236,1.1132,3563.9,3562.7,2.80681125]
[1762849614441,1.1132,3563.9,3563.0,1.259712]
[1762849614442,0.01,3563.9,3563.0,1.259712]
[1762849614612,0.01,3563.9,3563.8,3.3052936]
[1762849616714,0.9156,3563.9,3563.8,2.8059936]
[1762849616918,1.1005,3563.9,3563.1,0.649]
[1762849617218,0.4424,3563.9,3563.8,2.8059936]
[1762849617851,0.01,3563.9,3563.8,3.2926936]
[1762849618056,0.01,3563.9,3563.8,3.85390125]
[1762849618242,0.01,3563.9,3563.8,4.31040125]
[1762849618444,0.01,3563.9,3563.8,3.85390125]
[1762849620772,0.4732,3563.9,3563.8,3.36720125]
[1762849621064,0.4732,3563.9,3563.8,2.8059936]
[1762849621267,0.01,3563.9,3563.8,2.8059936]
[1762849621560,0.01,3563.9,3563.8,3.2926936]
[1762849621746,0.01,3563.9,3563.8,3.7491936]
[1762849621987,0.01,3563.9,3563.8,3.2926936]
[1762849622160,0.01,3563.9,3563.8,3.94822125]
[1762849622970,0.01,3563.9,3563.8,6.40822124]
[1762849625071,1.1135,3563.9,3563.8,2.45999999]
[1762849625362,0.01,3563.9,3563.8,5.75269359]
[1762849625867,0.01,3563.9,3563.8,6.20919359]
[1762849628352,0.002,3564.2,3564.0,0.4867]
[1762849628554,0.002,3564.2,3564.1,11.87133108]
[1762849631964,0.002,3564.2,3564.1,7.4498614]
[1762849633136,0.002,3564.2,3564.1,6.3953574]
[1762849633470,0.002,3564.2,3564.1,6.4014574]
[1762849633649,0.002,3564.2,3564.1,8.99830186]
[1762849633834,0.002,3564.2,3564.1,4.55216941]
[1762849634349,0.002,3564.2,3564.1,5.00866941]
[1762849634557,0.002,3564.2,3564.1,7.49672697]
[1762849634763,0.002,3564.2,3564.1,7.8741734]
[1762849636996,0.002,3564.2,3564.1,12.38906623]
[1762849637215,0.002,3564.2,3564.1,13.97345746]
[1762849642624,0.4704,3564.2,3564.1,8.10986063]
[1762849643011,0.002,3564.2,3564.1,8.10986063]
[1762849643204,0.4701,3564.2,3564.1,8.10986063]
[1762849643636,0.9115,3564.2,3564.1,8.10986063]
[1762849644403,0.9115,3564.2,3564.1,6.5254694]
[1762849645435,0.4701,3564.2,3564.1,6.5254694]
[1762849646029,0.9115,3564.2,3564.1,6.5254694]
[1762849646338,0.9115,3564.2,3564.1,5.2657574]
[1762849646523,0.9115,3564.2,3563.6,0.649]
[1762849646706,0.9115,3564.2,3563.6,2.80615108]
[1762849646707,0.6888,3563.7,3563.6,2.80615108]
[1762849646901,0.6888,3563.7,3563.6,4.06586308]
[1762849647102,1.1029,3563.7,3563.6,4.06586308]
[1762849647540,1.1029,3563.7,3563.6,2.80615108]
[1762849647709,0.4999,3563.7,3563.6,2.80615108]
[1762849648033,0.4999,3563.7,3563.6,3.83888586]
[1762849648975,0.914,3563.7,3563.6,2.80615108]
[1762849649664,0.914,3563.7,3562.9,2.80668008]
[1762849649836,0.4999,3563.1,3563.0,2.80762363]
[1762849650460,0.4999,3563.1,3563.0,4.06733563]
[1762849650827,0.914,3563.1,3563.0,2.80762363]
[1762849651462,0.4999,3563.1,3563.0,6.53279823]
[1762849651667,0.4999,3563.1,3563.0,7.59282057]
[1762849652265,0.6391,3563.9,3563.6,2.80615108]
[1762849652465,0.4634,3563.7,3563.6,2.80609868]
[1762849652841,0.9136,3563.7,3563.6,2.80609868]
[1762849653041,0.4634,3563.7,3563.6,2.80609868]
[1762849653236,0.1889,3563.9,3563.6,2.80609868]
[1762849653237,0.002,3564.2,3563.6,7.57050725]
[1762849653437,0.002,3564.2,3564.1,2.80575741]
[1762849653738,0.4654,3564.2,3564.1,2.80575741]
[1762849653941,0.9156,3564.2,3564.1,2.80575741]
[1762849654138,0.9156,3564.2,3564.0,2.80583142]
[1762849654339,0.4999,3563.7,3563.5,1.259712]
[1762849654566,0.0087,3563.6,3563.5,4.06594183]
[1762849654768,0.0087,3563.6,3563.5,2.80622983]
[1762849654973,0.1889,3563.9,3563.5,2.80622983]
[1762849655169,0.6391,3563.9,3563.8,2.8059936]
[1762849655666,1.1025,3563.9,3563.3,2.45999999]
[1762849655879,0.4999,3563.4,3563.3,5.26638732]
[1762849656078,0.4999,3563.4,3563.3,6.63716247]
[1762849656282,0.4096,3563.8,3563.7,2.80607234]
[1762849656481,0.9095,3563.8,3563.7,2.80607234]
[1762849656683,0.9095,3563.8,3563.5,2.80616608]
[1762849656866,0.0087,3563.6,3563.5,2.80616608]
[1762849657249,0.4589,3563.6,3563.5,2.80616608]
[1762849659049,0.0087,3563.6,3563.5,2.80616608]
[1762849660392,0.1889,3563.9,3563.8,2.8059936]
[1762849660593,0.002,3564.2,3563.8,2.8059936]
[1762849660594,0.002,3564.2,3563.8,4.2031746]
[1762849660893,0.002,3564.2,3564.1,2.80575741]
[1762849661391,0.4654,3564.2,3564.1,2.80575741]
[1762849662108,0.9156,3564.2,3563.7,3.71971199]
[1762849662392,0.6477,3563.8,3563.7,5.26607233]
[1762849662896,1.0979,3563.8,3563.7,5.26607233]
[1762849665917,0.6477,3563.8,3563.7,5.26607233]
[1762849666083,1.0979,3563.8,3563.7,5.26607233]
[1762849667145,1.0979,3563.8,3563.5,2.45999999]
[1762849667321,0.0092,3563.6,3563.5,5.26622066]
[1762849667527,0.0092,3563.6,3562.9,2.45999999]
[1762849667818,0.1889,3563.8,3563.0,2.80762363]
[1762849667819,0.4593,3563.1,3563.0,2.80762363]
[1762849668010,0.0046,3563.5,3563.4,2.80630858]
[1762849668212,0.1889,3563.8,3563.7,2.80607234]
[1762849668627,0.6888,3563.8,3563.7,2.80607234]
[1762849668938,1.3378,3563.8,3563.7,2.80607234]
[1762849669143,1.7519,3563.8,3563.7,2.80607234]
[1762849669909,1.1029,3563.8,3563.7,2.80607234]
[1762849670229,0.4999,3563.8,3563.7,2.80607234]
[1762849670429,0.651,3564.1,3564.0,2.80583613]
[1762849670846,1.5977,3564.1,3564.0,2.80583613]
[1762849671740,1.1475,3564.1,3564.0,2.80583613]
[1762849672138,1.5977,3564.1,3564.0,2.80583613]
[1762849672452,1.1475,3564.1,3564.0,2.80583613]
[1762849672650,0.4985,3564.1,3564.0,2.80583613]
[1762849672854,0.9487,3564.1,3564.0,2.80583613]
[1762849673058,0.5019,3564.1,3564.0,3.36701221]
[1762849674537,0.002,3564.1,3564.0,3.84501221]
[1762849675053,0.4985,3564.1,3564.0,3.36701221]
[1762849676359,0.002,3564.1,3564.0,4.32981221]
[1762849676855,0.002,3564.1,3564.0,4.62672421]
[1762849676856,0.4606,3564.1,3564.0,4.62672421]
[1762849677019,0.4606,3564.1,3564.0,4.06554813]
[1762849677221,0.914,3564.1,3564.0,4.06554813]
[1762849678023,0.4672,3564.1,3564.0,4.06554813]
[1762849678338,0.4672,3564.1,3564.0,2.80583613]
[1762849678559,0.9219,3564.1,3564.0,2.80583613]
[1762849681075,0.4672,3564.1,3564.0,2.80583613]
[1762849681281,0.9219,3564.1,3564.0,2.80583613]
[1762849681641,0.9219,3564.1,3564.0,5.26583612]
[1762849681873,1.07919,3564.1,3564.0,2.45999999]
[1762849682060,0.4672,3564.1,3564.0,5.26583612]
[1762849682474,1.1162,3564.1,3564.0,5.26583612]
[1762849682852,0.4672,3564.1,3564.0,5.26583612]
[1762849683053,1.1162,3564.1,3564.0,5.26583612]
[1762849683249,0.4672,3564.1,3564.0,5.26583612]
[1762849683761,0.9219,3564.1,3564.0,5.26583612]
[1762849684672,0.002,3564.1,3564.0,5.75723612]
[1762849684879,0.002,3564.1,3564.0,6.61355219]
[1762849685078,0.002,3564.1,3564.0,6.12215219]
[1762849685280,0.4672,3564.1,3564.0,6.12215219]
[1762849685775,0.002,3564.1,3564.0,6.12215219]
[1762849685998,0.002,3564.1,3564.0,6.61355219]
[1762849686143,0.002,3564.1,3564.0,6.12215219]
[1762849686781,0.002,3564.1,3564.0,6.61355219]
[1762849686952,0.002,3564.1,3564.0,10.7887416]
[1762849687452,0.002,3564.1,3564.0,7.06545219]
[1762849687972,0.002,3564.1,3564.0,7.06645219]
[1762849689385,0.002,3564.1,3564.0,6.61455219]
[1762849690496,0.002,3564.1,3564.0,6.12315219]
[1762849690697,0.4672,3564.1,3564.0,6.12315219]
[1762849691378,0.9219,3564.1,3564.0,3.31731606]
[1762849691582,0.9219,3564.1,3564.0,5.26683612]
[1762849693372,0.9219,3564.1,3564.0,2.80683613]
[1762849693598,0.4672,3564.1,3564.0,2.80683613]
[1762849693798,0.002,3564.1,3564.0,0.001]
[1762849694111,0.9219,3564.1,3564.0,2.80683613]
[1762849696936,0.9219,3564.1,3564.0,0.001]
[1762849697262,7.45094682,3564.1,3564.0,0.001]
[1762849697438,8.47680804,3564.1,3564.0,0.001]
[1762849699140,4.75351863,3564.1,3564.0,0.001]
[1762849701209,5.40251863,3564.1,3564.0,0.001]
[1762849702541,2.59676122,3564.1,3564.0,0.001]
[1762849702707,0.9219,3564.1,3564.0,0.001]
[1762849702908,1.5709,3564.1,3564.0,0.001]
[1762849703115,4.37665741,3564.1,3564.0,0.001]
[1762849703317,1.5709,3564.1,3564.0,0.001]
[1762849704411,4.37665741,3564.1,3564.0,0.001]
[1762849704611,5.22105875,3564.1,3564.0,0.001]
[1762849704831,2.41530134,3564.1,3564.0,0.001]
[1762849705343,5.22105875,3564.1,3564.0,0.001]
[1762849706059,2.41530134,3564.1,3564.0,0.001]
[1762849706722,5.22105875,3564.1,3564.0,0.001]
[1762849707251,5.24915115,3564.1,3564.0,0.001]
[1762849707734,6.50886315,3564.1,3564.0,0.001]
[1762849707923,6.48077075,3564.1,3564.0,0.001]
[1762849708245,5.83177075,3564.1,3564.0,0.001]
[1762849708449,6.48077075,3564.1,3564.0,0.001]
[1762849711073,6.88627475,3564.1,3564.0,0.001]
[1762849711570,6.23727475,3564.1,3564.0,0.001]
[1762849711737,6.88627475,3564.1,3564.0,0.001]
[1762849714077,6.23727475,3564.1,3564.0,0.001]
[1762849714237,6.88627475,3564.1,3564.0,0.001]
[1762849716980,3.67501334,3564.1,3564.0,0.001]
[1762849717183,3.02601334,3564.1,3564.0,0.001]
[1762849717386,6.48077075,3564.1,3564.0,0.001]
[1762849717784,6.02607075,3564.1,3564.0,0.001]
[1762849717950,6.49877075,3564.1,3564.0,0.001]
[1762849718147,6.90427475,3564.1,3564.0,0.001]
[1762849724198,6.90427475,3564.1,3564.0,0.00016238]
[1762849729364,7.01670046,3564.1,3564.0,0.00016238]
[1762849729987,9.97570046,3564.1,3564.0,0.00016238]
[1762849730762,7.01670046,3564.1,3564.0,0.00016238]
[1762849734103,2.80607234,3563.7,3563.6,0.00018878]
[1762849734313,9.5005701,3563.7,3563.6,0.00018878]
[1762849734474,9.9451777,3563.7,3563.6,0.00018878]
[1762849734833,12.9041777,3563.7,3563.6,0.00018878]
[1762849735507,3.21189133,3563.3,3563.2,0.001]
[1762849735713,10.1848257,3563.3,3563.2,0.001]
[1762849735873,13.1438257,3563.3,3563.2,0.001]
[1762849736081,13.25627827,3563.3,3563.2,0.001]
[1762849736372,13.25627827,3563.3,3563.0,0.001]
[1762849736373,6.17104886,3563.1,3563.0,0.001]
[1762849736684,9.66721437,3563.1,3563.0,0.001]
[1762849736883,9.66721437,3563.1,3562.6,0.001]
[1762849736884,2.8067024,3562.9,3562.6,0.001]
[1762849737187,3.364504,3562.5,3562.2,0.001]
[1762849737392,4.47239113,3562.3,3562.2,0.001]
[1762849737738,7.81679113,3562.3,3562.2,0.001]
[1762849737936,10.11798132,3562.3,3562.2,0.001]
[1762849738136,10.23046678,3562.3,3562.2,0.001]
[1762849738271,7.44816994,3562.2,3562.0,1e-08]
[1762849738471,4.06712356,3562.0,3561.1,0.011]
[1762849738702,4.47294286,3561.6,3561.1,0.011]
[1762849738941,12.91416246,3561.6,3561.1,0.011]
[1762849739113,13.41156246,3561.6,3561.1,0.011]
[1762849739848,10.45256246,3561.6,3561.1,0.011]
[1762849740843,3.21354623,3561.2,3561.1,0.011]
[1762849741050,6.223893,3560.2,3560.1,0.01]
[1762849741202,8.136505,3560.2,3560.1,0.01]
[1762849741406,8.542009,3560.2,3560.1,0.01]
[1762849741620,9.041009,3560.2,3560.1,0.01]
[1762849743323,4.47794696,3560.2,3560.1,0.01]
[1762849743662,9.27067734,3560.2,3560.1,0.01]
[1762849744162,5.35812586,3560.1,3560.0,1e-08]
[1762849744565,6.00712586,3560.1,3560.0,1e-08]
[1762849744733,5.35812586,3560.1,3560.0,1e-08]
[1762849744930,10.44269296,3560.1,3560.0,1e-08]
[1762849745133,12.27328583,3560.1,3560.0,1e-08]
[1762849747858,12.27328583,3560.1,3559.6,0.001]
[1762849747859,4.47444149,3559.7,3559.6,0.001]
[1762849748064,5.15923389,3559.7,3559.6,0.001]
[1762849748373,5.65823389,3559.7,3559.6,0.001]
[1762849748569,6.49666793,3559.7,3559.6,0.001]
[1762849749069,6.49666793,3559.7,3558.0,0.6386]
[1762849749070,2.80985697,3558.9,3558.8,1e-08]
[1762849749371,10.16483247,3558.9,3558.8,1e-08]
[1762849749575,10.63574007,3558.9,3558.8,1e-08]
[1762849749911,12.37386255,3558.9,3558.8,1e-08]
[1762849751134,13.89186255,3558.9,3558.8,1e-08]
[1762849751738,4.47515193,3558.8,3557.1,0.4655]
[1762849752076,5.38914433,3558.8,3557.1,0.4655]
[1762849752282,5.38914433,3558.8,3557.1,0.01]
[1762849752283,4.47641582,3557.2,3557.1,0.01]
[1762849752440,4.86441582,3557.2,3557.1,0.01]
[1762849752640,5.51441582,3557.2,3557.1,0.01]
[1762849753550,5.12641582,3557.2,3557.1,0.01]
[1762849753772,1.665216,3557.2,3557.1,1.1076]
[1762849754090,2.315216,3557.2,3557.1,1.1076]
[1762849754276,5.12641582,3557.2,3557.1,1.1076]
[1762849754668,2.315216,3557.2,3557.1,1.1076]
[1762849754873,5.12641582,3557.2,3557.1,1.1076]
[1762849755069,1.259712,3557.2,3557.1,1.1076]
[1762849755271,1.909712,3557.2,3557.1,1.1076]
[1762849755625,6.36639666,3557.2,3557.1,0.01]
[1762849756082,6.76539666,3557.2,3557.1,0.01]
[1762849757074,6.94849666,3557.2,3557.1,0.01]
[1762849757276,3.21749432,3556.2,3556.1,0.01]
[1762849757500,6.12914521,3556.2,3556.1,0.01]
[1762849758465,6.61504521,3556.2,3556.1,0.01]
[1762849758900,11.15697885,3556.2,3556.1,0.01]
[1762849760023,11.15697885,3556.2,3556.1,0.011]
[1762849763598,10.67107885,3556.2,3556.1,0.011]
[1762849764873,9.62207885,3556.2,3556.1,0.47]
[1762849765096,10.27207885,3556.2,3556.1,0.47]
[1762849765294,5.73014521,3556.2,3556.1,0.6062]
[1762849765494,5.12720632,3556.2,3556.1,1.0769]
[1762849765694,4.72170232,3556.2,3556.1,1.0769]
[1762849765977,5.12720632,3556.2,3556.1,1.0769]
[1762849766377,4.72170232,3556.2,3556.1,1.0769]
[1762849766685,1.909712,3556.2,3556.1,1.0769]
[1762849767089,0.651,3556.2,3556.1,1.0769]
[1762849767699,4.72270232,3556.2,3556.1,1.0769]
[1762849768009,1.910712,3556.2,3556.1,1.0769]
[1762849768822,4.72270232,3556.2,3556.1,1.0769]
[1762849769022,1.910712,3556.2,3556.1,1.0769]
[1762849769611,5.47614489,3556.2,3556.1,0.47]
[1762849769934,4.72270232,3556.2,3556.1,0.47]
[1762849770440,4.72270232,3556.2,3556.1,1.0704]
[1762849770749,1.259712,3556.2,3556.1,1.0704]
[1762849770904,1.909712,3556.2,3556.1,1.0704]
[1762849771334,4.72170232,3556.2,3556.1,1.0704]
[1762849771538,1.909712,3556.2,3556.1,1.0704]
[1762849774738,4.72170232,3556.2,3556.1,1.0704]
[1762849775039,1.909712,3556.2,3556.1,1.0704]
[1762849777125,1.909712,3556.2,3556.1,0.17875767]
[1762849777652,1.259712,3556.2,3556.1,0.17875767]
[1762849777813,1.909712,3556.2,3556.1,0.17875767]
[1762849778012,1.909712,3556.2,3556.1,0.17975767]
[1762849778843,1.259712,3556.2,3556.1,0.1307]
[1762849779163,0.65,3556.2,3556.1,2.94271491]
[1762849779852,0.65,3556.2,3556.1,0.1307]
[1762849780814,1.12214877,3556.2,3556.1,0.1307]
[1762849781018,0.65,3556.2,3556.1,0.1307]
[1762849781452,3.46199032,3556.2,3556.1,0.001]
[1762849781751,3.93139032,3556.2,3556.1,0.001]
[1762849782121,4.33689432,3556.2,3556.1,0.001]
[1762849782668,6.07720632,3556.2,3556.1,0.001]
[1762849782871,7.56035361,3556.2,3556.1,0.0002]
[1762849790662,6.72301998,3556.2,3556.1,0.0002]
[1762849790881,6.61035361,3556.2,3556.1,0.0002]
[1762849791195,3.79836329,3556.2,3556.1,0.0002]
[1762849791393,5.12720632,3556.2,3556.1,0.0002]
[1762849792609,5.59660632,3556.2,3556.1,0.0002]
[1762849793575,5.12720632,3556.2,3556.1,0.0002]
[1762849793803,2.315216,3556.2,3556.1,0.0002]
[1762849793987,5.12720632,3556.2,3556.1,0.0002]
[1762849794189,1.909712,3556.2,3556.1,0.0002]
[1762849794421,4.72170232,3556.2,3556.1,0.0002]
[1762849794723,4.07170232,3556.2,3556.1,0.0002]
[1762849794910,4.72170232,3556.2,3556.1,0.0002]
[1762849795591,1.911712,3556.2,3556.1,0.0002]
[1762849795780,4.72370232,3556.2,3556.1,0.0002]
[1762849796385,1.911712,3556.2,3556.1,0.0002]
[1762849797322,1.261712,3556.2,3556.1,0.0002]
[1762849797822,1.911712,3556.2,3556.1,0.0002]
[1762849798304,4.72370232,3556.2,3556.1,0.0002]
[1762849798884,1.911712,3556.2,3556.1,0.0002]
[1762849799837,4.72370232,3556.2,3556.1,0.0002]
[1762849800620,1.911712,3556.2,3556.1,0.0002]
[1762849801030,4.72370232,3556.2,3556.1,0.0002]
[1762849801230,1.911712,3556.2,3556.1,0.0002]
[1762849801729,0.002,3556.2,3556.1,2.8122694]
[1762849801899,0.652,3556.2,3556.1,3.37471215]
[1762849802689,0.002,3556.2,3556.1,3.37471215]
[1762849802937,0.002,3556.6,3556.5,2.81175312]
[1762849803227,0.006,3556.6,3556.5,2.81175312]
[1762849803586,0.002,3556.6,3556.5,2.81175312]
[1762849803792,0.057,3556.6,3556.5,3.37411272]
[1762849804191,0.057,3556.6,3556.3,2.8119094]
[1762849804425,0.057,3556.6,3556.1,2.81226481]
[1762849804692,0.057,3556.6,3556.2,2.81199032]
[1762849804890,0.057,3556.6,3556.4,2.81176408]
[1762849805141,0.057,3556.6,3556.1,0.0002]
[1762849805341,0.057,3556.6,3556.3,2.81189063]
[1762849805512,0.057,3556.6,3556.1,0.0002]
[1762849805826,0.057,3556.6,3556.3,2.81189307]
[1762849806330,0.057,3556.6,3556.1,0.0002]
[1762849806490,0.057,3556.6,3556.5,2.81175312]
[1762849806929,0.652,3556.6,3556.5,2.81175312]
[1762849807134,0.652,3556.6,3556.1,0.0002]
[1762849807493,0.652,3556.6,3556.5,2.81175312]
[1762849808500,0.652,3556.6,3556.1,0.28144184]
[1762849808904,0.652,3556.6,3556.4,2.8118144]
[1762849809426,0.652,3556.6,3556.1,0.0002]
[1762849809591,0.652,3556.6,3556.5,2.81175312]
[1762849809797,0.652,3556.6,3556.4,2.81178548]
[1762849810074,0.652,3556.6,3556.1,0.0002]
[1762849810427,3.46373292,3556.6,3556.1,0.0002]
[1762849810627,1.08792606,3556.5,3556.1,0.0002]
[1762849811015,0.4604,3556.5,3556.1,0.0002]